bitfinex-derivatives/quotes_SOLF0:USTF0_20241203
["timestamp","ask_amount","ask_price","bid_price","bid_amount"]
[1733222809712,2.2131,225.9,225.86,2.2134]
[1733222809911,7.96957508,225.91,225.86,2.2134]
[1733222811415,7.96957508,225.91,225.83,4.8074]
[1733222811616,7.96957508,225.91,225.83,2.5937]
[1733222812106,7.96957508,225.91,225.84,2.2135]
[1733222812314,2.2134,225.86,225.83,1.2912]
[1733222812513,7.96957508,225.89,225.82,2.04]
[1733222812713,7.96957508,225.89,225.82,4.2537]
[1733222812912,7.96957508,225.89,225.8,7.96957508]
[1733222813117,7.96957508,225.88,225.8,10.00957508]
[1733222813518,2.2135,225.86,225.81,2.2139]
[1733222813718,7.96957508,225.88,225.81,2.2139]
[1733222813912,2.2135,225.86,225.81,2.2139]
[1733222814523,7.96957508,225.88,225.81,2.2139]
[1733222814524,2.2135,225.85,225.81,2.2139]
[1733222815418,2.2135,225.85,225.8,10.00957508]
[1733222816224,2.2135,225.85,225.81,2.2138]
[1733222816619,2.2132,225.89,225.82,7.96957508]
[1733222816819,7.96957508,225.91,225.85,2.2135]
[1733222817120,7.96957508,225.93,225.84,7.96957508]
[1733222817433,2.2131,225.89,225.86,2.2134]
[1733222818223,2.213,225.9,225.86,2.2134]
[1733222818419,2.213,225.9,225.87,2.2133]
[1733222818623,2.213,225.9,225.85,2.04]
[1733222819423,2.213,225.9,225.86,2.2134]
[1733222819826,2.2131,225.89,225.85,2.04]
[1733222822126,2.2131,225.89,225.86,2.2134]
[1733222822531,7.96957508,225.93,225.86,2.2134]
[1733222822733,2.213,225.9,225.86,2.2134]
[1733222823034,7.96957508,225.93,225.86,2.2134]
[1733222823229,7.96957508,225.91,225.85,2.04]
[1733222823429,7.96957508,225.89,225.85,2.04]
[1733222823630,7.96957508,225.89,225.81,11.35237508]
[1733222823927,2.2134,225.86,225.82,2.2138]
[1733222824736,2.2134,225.86,225.83,2.2136]
[1733222827038,7.96957508,225.89,225.83,7.96957508]
[1733222827336,7.96957508,225.92,225.85,2.2135]
[1733222828335,2.2132,225.89,225.85,2.2135]
[1733222830439,7.96957508,225.92,225.83,7.96957508]
[1733222830638,2.2132,225.88,225.84,2.2136]
[1733222831738,2.2133,225.88,225.84,2.2135]
[1733222831939,7.96957508,225.9,225.84,2.2135]
[1733222832344,7.96957508,225.9,225.82,7.96957508]
[1733222832637,7.96957508,225.9,225.81,2.04]
[1733222832638,7.96957508,225.88,225.81,2.04]
[1733222834342,7.96957508,225.84,225.77,2.04]
[1733222834545,7.96957508,225.82,225.75,11.37197508]
[1733222834739,2.214,225.8,225.71,2.2148]
[1733222834939,7.96957508,225.8,225.72,5.36414814]
[1733222835138,7.96957508,225.8,225.73,4.9209287]
[1733222835445,2.2143,225.77,225.74,1.1080425]
[1733222835636,2.2143,225.77,225.73,2.04]
[1733222835940,2.2143,225.77,225.67,2.91881795]
[1733222835941,2.2143,225.77,225.74,1.10813761]
[1733222836345,2.2143,225.77,225.71,10.00957508]
[1733222836542,2.2143,225.77,225.72,1.1081826]
[1733222836741,7.96957508,225.79,225.73,1.1081826]
[1733222837045,2.2145,225.75,225.71,2.04]
[1733222837245,2.2145,225.75,225.72,1.10821757]
[1733222837451,7.96957508,225.77,225.7,7.96957508]
[1733222837743,7.96957508,225.77,225.71,1.1082571]
[1733222837946,7.96957508,225.77,225.7,7.96957508]
[1733222838144,7.96957508,225.77,225.71,1.1082571]
[1733222838342,7.96957508,225.77,225.7,7.96957508]
[1733222838542,7.96957508,225.77,225.71,1.1082571]
[1733222838839,7.96957508,225.77,225.7,7.96957508]
[1733222839042,2.2145,225.75,225.71,1.10825285]
[1733222839343,7.96957508,225.77,225.7,7.96957508]
[1733222839541,2.2147,225.73,225.68,12.22467508]
[1733222839840,2.2147,225.73,225.69,1.10829877]
[1733222840042,2.2147,225.73,225.68,12.22467508]
[1733222840645,2.2147,225.73,225.68,10.00957508]
[1733222840842,7.96957508,225.75,225.68,10.00957508]
[1733222841043,7.96957508,225.72,225.63,4.6675]
[1733222841243,7.96957508,225.72,225.64,1.10842403]
[1733222841441,2.04,225.74,225.65,9.07799911]
[1733222841649,2.2148,225.72,225.67,7.96957508]
[1733222842546,2.2149,225.71,225.67,7.96957508]
[1733222843245,2.2149,225.71,225.65,10.18497508]
[1733222843446,2.2149,225.71,225.65,7.96957508]
[1733222843641,2.2148,225.72,225.67,7.96957508]
[1733222844439,12.22417508,225.74,225.68,2.2151]
[1733222844743,2.7196,225.78,225.69,7.96957508]
[1733222844945,7.96957508,225.76,225.69,7.96957508]
[1733222845347,2.2144,225.76,225.71,7.96957508]
[1733222845549,10.68917508,225.78,225.71,7.96957508]
[1733222845949,2.2144,225.76,225.71,7.96957508]
[1733222846749,10.68917508,225.78,225.71,7.96957508]
[1733222847152,2.2145,225.75,225.7,2.2149]
[1733222851251,7.96957508,225.78,225.71,7.96957508]
[1733222851746,1.3063,225.86,225.75,7.96957508]
[1733222851950,1.3063,225.86,225.77,7.96957508]
[1733222852148,7.96957508,225.85,225.79,7.96957508]
[1733222852450,2.2136,225.84,225.79,7.96957508]
[1733222853553,2.2136,225.84,225.77,7.96957508]
[1733222854154,2.2136,225.84,225.78,2.2141]
[1733222854751,2.214,225.8,225.75,12.22397508]
[1733222856054,2.2139,225.81,225.76,2.2143]
[1733222857555,7.96957508,225.86,225.78,2.2142]
[1733222858247,7.96957508,225.86,225.77,10.18377508]
[1733222858248,2.2138,225.82,225.77,10.18377508]
[1733222858561,7.96957508,225.86,225.77,7.96957508]
[1733222859053,2.2137,225.83,225.78,2.2142]
[1733222859249,7.96957508,225.84,225.75,10.00957508]
[1733222859648,7.96957508,225.83,225.75,2.04]
[1733222859851,7.96957508,225.83,225.75,10.00957508]
[1733222860450,1.3525,225.87,225.74,2.2145]
[1733222860451,7.96957508,225.81,225.74,2.2145]
[1733222860657,7.96957508,225.81,225.74,4.2545]
[1733222860856,7.96957508,225.79,225.74,2.04]
[1733222862264,2.2144,225.76,225.74,2.04]
[1733222862557,7.96957508,225.77,225.69,10.00957508]
[1733222862766,2.04,225.83,225.69,10.00957508]
[1733222862767,2.2147,225.73,225.69,10.00957508]
[1733222863061,2.2147,225.73,225.69,2.04]
[1733222863858,2.2148,225.72,225.69,2.04]
[1733222864061,7.96957508,225.73,225.69,2.04]
[1733222864765,2.2149,225.71,225.66,12.22487508]
[1733222865665,7.96957508,225.71,225.64,1.3654]
[1733222865866,7.96957508,225.71,225.63,11.31487508]
[1733222866061,7.96957508,225.69,225.57,1.402]
[1733222866259,2.2153,225.67,225.62,7.96957508]
[1733222866767,2.2153,225.67,225.62,10.18527508]
[1733222867562,1.2962,225.77,225.63,2.04]
[1733222867757,1.2962,225.77,225.67,2.2152]
[1733222867958,1.2962,225.77,225.67,2.04]
[1733222868769,1.2962,225.77,225.68,2.2151]
[1733222868770,2.2146,225.74,225.68,2.2151]
[1733222868967,1.2962,225.77,225.68,2.2151]
[1733222869669,1.2962,225.77,225.67,2.04]
[1733222869964,2.2149,225.71,225.67,2.04]
[1733222870166,12.45365987,225.76,225.67,2.04]
[1733222870364,2.2149,225.71,225.67,2.04]
[1733222870567,12.45365987,225.76,225.67,2.04]
[1733222870761,12.45365987,225.76,225.63,1.2898]
[1733222871068,12.45365987,225.73,225.65,2.04]
[1733222871263,2.2152,225.68,225.65,2.04]
[1733222871661,12.45365987,225.73,225.65,2.04]
[1733222871866,2.2153,225.67,225.65,2.04]
[1733222875276,2.2153,225.67,225.63,1.2898]
[1733222876270,2.2154,225.66,225.63,1.2898]
[1733222879074,2.2156,225.64,225.61,2.04]
[1733222879280,12.45365987,225.69,225.62,1.10855445]
[1733222879481,12.45365987,225.69,225.6,2.04]
[1733222879781,14.49365987,225.69,225.58,2.04]
[1733222880380,2.2157,225.63,225.59,2.216]
[1733222880583,14.49365987,225.69,225.58,2.04]
[1733222880879,2.2157,225.63,225.59,2.216]
[1733222883779,14.49365987,225.69,225.58,2.04]
[1733222883985,2.2158,225.62,225.58,4.2561]
[1733222884482,2.2156,225.63,225.59,2.216]
[1733222885074,2.2157,225.62,225.59,2.216]
[1733222885978,2.2157,225.63,225.59,2.216]
[1733222886273,14.49365987,225.69,225.61,2.2158]
[1733222886474,2.2155,225.65,225.61,2.2158]
[1733222887077,15.86895987,225.72,225.62,2.2157]
[1733222887278,2.2153,225.66,225.62,2.2157]
[1733222887879,2.2155,225.65,225.62,2.2157]
[1733222888086,2.2155,225.65,225.61,2.2158]
[1733222888677,2.2156,225.64,225.61,2.2158]
[1733222890584,2.2156,225.64,225.58,2.04]
[1733222890585,7.97252105,225.7,225.65,2.2154]
[1733222890978,2.215,225.7,225.66,2.2153]
[1733222891284,2.04,225.72,225.65,7.97252105]
[1733222891285,7.97252105,225.72,225.65,7.97252105]
[1733222891683,2.215,225.7,225.67,2.2152]
[1733222892079,7.97252105,225.72,225.63,2.04]
[1733222892283,7.97252105,225.72,225.65,7.97252105]
[1733222894086,2.215,225.7,225.67,2.2152]
[1733222894387,2.04,225.75,225.67,2.2152]
[1733222894685,7.97252105,225.72,225.67,2.2152]
[1733222896188,7.97252105,225.76,225.69,7.97252105]
[1733222896389,2.04,225.81,225.69,7.97252105]
[1733222896586,7.97252105,225.75,225.7,2.2149]
[1733222896982,2.04,225.81,225.7,2.2149]
[1733222897189,2.04,225.81,225.66,2.04]
[1733222897190,2.215,225.7,225.66,2.04]
[1733222897391,7.97252105,225.71,225.66,2.04]
[1733222897891,2.04,225.76,225.66,2.04]
[1733222898092,7.97252105,225.72,225.66,2.04]
[1733222899095,2.2149,225.71,225.66,2.04]
[1733222899589,7.97252105,225.7,225.64,1.3328]
[1733222899787,7.97252105,225.66,225.62,2.04]
[1733222901088,2.2155,225.65,225.62,2.04]
[1733222901483,7.97252105,225.66,225.62,2.04]
[1733222901686,10.18792105,225.66,225.62,2.04]
[1733222901992,2.6219,225.75,225.63,2.2155]
[1733222901993,7.97252105,225.68,225.63,2.2155]
[1733222902787,2.2152,225.67,225.62,4.2557]
[1733222903791,7.97252105,225.68,225.62,2.04]
[1733222904093,7.97252105,225.68,225.61,2.2158]
[1733222904290,2.2156,225.64,225.6,2.04]
[1733222905899,2.2156,225.64,225.6,4.2559]
[1733222909697,2.2158,225.61,225.6,2.04]
[1733222911195,2.2158,225.61,225.57,2.2162]
[1733222913793,2.2158,225.61,225.57,10.18872105]
[1733222915807,7.97252105,225.64,225.57,10.18872105]
[1733222916101,7.97252105,225.62,225.56,2.04]
[1733222916305,7.97252105,225.62,225.57,1.10897499]
[1733222916494,7.97252105,225.62,225.56,2.04]
[1733222916697,7.97252105,225.62,225.57,1.10897441]
[1733222916903,7.97252105,225.62,225.56,2.04]
[1733222917098,2.216,225.6,225.57,2.2162]
[1733222919404,7.97252105,225.62,225.51,1.2853]
[1733222919603,7.97252105,225.6,225.54,2.04]
[1733222920402,1.3063,225.65,225.52,2.04]
[1733222920403,7.97252105,225.58,225.52,2.04]
[1733222920804,2.2164,225.55,225.52,4.2566]
[1733222920999,7.97252105,225.58,225.52,2.04]
[1733222921705,2.2163,225.56,225.53,2.2166]
[1733222923810,7.97252105,225.58,225.51,2.2167]
[1733222924003,7.97252105,225.58,225.51,2.04]
[1733222924405,2.2163,225.56,225.51,4.2568]
[1733222924604,7.97252105,225.58,225.51,4.2568]
[1733222924809,7.97252105,225.58,225.52,1.1091925]
[1733222925012,7.97252105,225.56,225.51,2.04]
[1733222925207,7.97252105,225.56,225.52,1.10921228]
[1733222925504,7.97252105,225.54,225.51,2.04]
[1733222925911,1.3489,225.6,225.47,2.04]
[1733222925912,7.97252105,225.52,225.47,2.04]
[1733222926209,7.97252105,225.52,225.48,1.10933851]
[1733222926409,2.2169,225.51,225.47,2.04]
[1733222926600,2.2169,225.51,225.48,1.10937513]
[1733222926809,2.2169,225.51,225.47,2.04]
[1733222927004,2.2169,225.51,225.48,1.10937552]
[1733222927309,2.2169,225.51,225.48,1.1093753]
[1733222927507,2.2169,225.51,225.47,2.04]
[1733222927708,2.2169,225.51,225.48,1.10938608]
[1733222927902,2.2169,225.51,225.47,2.04]
[1733222928106,2.2167,225.53,225.47,2.04]
[1733222928414,7.97252105,225.54,225.47,2.04]
[1733222928806,2.2168,225.52,225.47,4.2572]
[1733222929910,2.2171,225.49,225.45,4.2574]
[1733222930210,2.2171,225.49,225.46,1.10942562]
[1733222930404,2.2171,225.49,225.45,4.2574]
[1733222930605,7.97252105,225.5,225.46,1.10942722]
[1733222930801,2.2172,225.47,225.41,10.01252105]
[1733222931108,2.2172,225.47,225.42,4.92476752]
[1733222931309,2.2172,225.47,225.43,1.10955075]
[1733222931508,2.2172,225.47,225.44,1.10955075]
[1733222931709,2.2172,225.47,225.42,2.04]
[1733222931909,7.97252105,225.48,225.43,1.10951033]
[1733222932105,7.97252105,225.48,225.44,1.10951033]
[1733222932308,7.97252105,225.48,225.42,2.04]
[1733222932509,2.2174,225.46,225.42,2.2177]
[1733222932709,7.97252105,225.46,225.39,10.01252105]
[1733222933012,7.97252105,225.46,225.4,1.10958911]
[1733222933211,7.97252105,225.46,225.41,1.10958911]
[1733222933513,7.97252105,225.46,225.4,2.2178]
[1733222933514,2.2175,225.44,225.4,2.2178]
[1733222934015,2.2177,225.43,225.39,12.23052105]
[1733222934307,7.97252105,225.46,225.39,10.01252105]
[1733222934810,2.2176,225.43,225.37,2.2181]
[1733222935010,2.2176,225.43,225.38,2.04]
[1733222935205,7.97252105,225.44,225.38,2.04]
[1733222935412,2.2178,225.41,225.38,4.258]
[1733222935610,7.97252105,225.44,225.38,2.04]
[1733222937618,2.2179,225.41,225.38,2.04]
[1733222940313,3.3872,225.5,225.39,7.97252105]
[1733222940513,1.3472,225.5,225.39,7.97252105]
[1733222940815,7.97252105,225.47,225.39,7.97252105]
[1733222941409,7.97252105,225.49,225.41,7.97252105]
[1733222942416,2.2172,225.47,225.44,2.2175]
[1733222942713,2.2172,225.47,225.43,2.04]
[1733222944014,2.04,225.51,225.43,10.01252105]
[1733222944220,2.217,225.49,225.43,10.01252105]
[1733222944420,7.97252105,225.5,225.43,10.01252105]
[1733222944718,7.97252105,225.48,225.43,2.04]
[1733222945918,2.2174,225.46,225.43,2.04]
[1733222948020,2.2174,225.46,225.43,4.2576]
[1733222949615,2.2174,225.46,225.43,2.04]
[1733222951325,7.97252105,225.44,225.4,2.04]
[1733222951528,7.97252105,225.42,225.34,0.22087901]
[1733222951826,2.2182,225.38,225.34,2.43937901]
[1733222952023,7.97252105,225.4,225.33,2.04]
[1733222952324,7.97252105,225.4,225.34,1.77612679]
[1733222952527,7.97252105,225.38,225.34,1.77612679]
[1733222953725,7.97252105,225.38,225.34,2.88620603]
[1733222953926,7.97252105,225.36,225.34,2.88620603]
[1733222954120,7.97252105,225.36,225.34,1.77612679]
[1733222954822,2.2184,225.35,225.34,1.77612679]
[1733222955026,7.97252105,225.36,225.29,10.23392657]
[1733222955325,7.97252105,225.36,225.29,12.23142105]
[1733222955726,1.4061,225.44,225.31,7.97252105]
[1733222955926,7.97252105,225.38,225.31,7.97252105]
[1733222956122,2.04,225.43,225.31,7.97252105]
[1733222956318,2.2182,225.37,225.31,7.97252105]
[1733222956518,7.97252105,225.39,225.31,7.97252105]
[1733222957626,7.97252105,225.39,225.33,2.2186]
[1733222958431,7.97252105,225.39,225.31,7.97252105]
[1733222958627,2.2182,225.37,225.32,3.32877075]
[1733222958827,2.2182,225.37,225.33,1.11017075]
[1733222959026,2.2182,225.37,225.32,2.2186]
[1733222959229,2.2182,225.37,225.33,1.11017075]
[1733222959532,2.2182,225.37,225.33,2.2185]
[1733222960126,1.4061,225.44,225.31,7.97252105]
[1733222960328,4.4322,225.59,225.37,7.97252105]
[1733222960524,4.4322,225.59,225.37,10.01252105]
[1733222960525,7.97252105,225.44,225.37,10.01252105]
[1733222960930,7.97252105,225.46,225.39,7.97252105]
[1733222961126,7.97252105,225.46,225.37,2.04]
[1733222961431,2.2176,225.43,225.39,2.2179]
[1733222961632,7.97252105,225.46,225.38,7.97252105]
[1733222961831,7.97252105,225.44,225.39,1.10986491]
[1733222962130,7.97252105,225.44,225.37,2.04]
[1733222962330,7.97252105,225.44,225.38,1.1099395]
[1733222962532,2.2177,225.42,225.37,4.2582]
[1733222962733,7.97252105,225.44,225.38,1.10994001]
[1733222962925,2.04,225.5,225.39,1.10994001]
[1733222963126,2.2177,225.43,225.38,2.218]
[1733222963329,2.2177,225.43,225.39,1.10990451]
[1733222963527,7.97252105,225.44,225.38,2.218]
[1733222963736,7.97252105,225.44,225.39,1.10992009]
[1733222963927,7.97252105,225.44,225.38,2.218]
[1733222964128,7.97252105,225.44,225.39,1.10994561]
[1733222964329,7.97252105,225.4,225.37,2.04]
[1733222964538,2.04,225.45,225.33,10.01252105]
[1733222964733,7.97252105,225.41,225.34,2.88612924]
[1733222964936,7.97252105,225.41,225.35,1.11004971]
[1733222965136,7.97252105,225.39,225.36,1.11004971]
[1733222965333,2.2183,225.36,225.33,2.04]
[1733222965732,7.97252105,225.39,225.34,1.11018991]
[1733222965941,2.2182,225.37,225.33,2.04]
[1733222966332,2.2182,225.37,225.34,1.11022179]
[1733222966636,2.2182,225.37,225.33,2.04]
[1733222966838,2.2182,225.37,225.34,1.1102015]
[1733222967138,2.2182,225.37,225.33,4.2586]
[1733222967342,2.2182,225.37,225.34,1.11021111]
[1733222967537,2.2182,225.37,225.35,1.11018055]
[1733222967839,2.2182,225.37,225.34,2.2185]
[1733222968041,2.2182,225.37,225.35,1.11014936]
[1733222968240,2.2182,225.37,225.36,1.11014259]
[1733222968441,2.2182,225.37,225.34,2.2185]
[1733222968742,2.2182,225.37,225.35,1.11014739]
[1733222968944,2.2182,225.37,225.34,2.2185]
[1733222969134,2.2182,225.37,225.35,1.11016193]
[1733222969338,2.2182,225.37,225.34,2.2185]
[1733222969640,7.97252105,225.39,225.35,1.11016193]
[1733222969841,2.2182,225.38,225.34,2.2185]
[1733222970037,2.2182,225.38,225.35,1.11015734]
[1733222970238,7.97252105,225.39,225.35,2.2183]
[1733222970537,2.7255,225.44,225.33,2.04]
[1733222970538,7.97252105,225.41,225.33,2.04]
[1733222970744,2.2182,225.38,225.34,1.11011318]
[1733222970944,7.97252105,225.39,225.33,4.2586]
[1733222971244,7.97252105,225.39,225.34,1.11015643]
[1733222971440,7.97252105,225.39,225.33,4.2586]
[1733222971942,2.2182,225.37,225.33,4.2586]
[1733222972141,7.97252105,225.39,225.33,4.2586]
[1733222972933,2.2182,225.37,225.33,4.2586]
[1733222975543,7.97252105,225.39,225.33,2.04]
[1733222975736,7.97252105,225.37,225.33,2.04]
[1733222976242,7.97252105,225.37,225.32,2.2187]
[1733222976243,2.2185,225.35,225.32,2.2187]
[1733222976546,2.2185,225.35,225.3,10.01252105]
[1733222977345,7.97252105,225.37,225.3,2.04]
[1733222977547,2.2185,225.34,225.3,2.04]
[1733222977939,2.2185,225.34,225.3,4.2589]
[1733222978342,2.2185,225.34,225.31,1.11032654]
[1733222978642,2.2185,225.34,225.3,4.2589]
[1733222978950,2.2185,225.34,225.31,1.11029965]
[1733222979248,2.2185,225.34,225.3,4.2589]
[1733222979444,2.2185,225.34,225.31,1.11029965]
[1733222979649,2.2185,225.34,225.3,4.2589]
[1733222980143,2.2185,225.34,225.31,1.11030023]
[1733222980344,2.2185,225.34,225.3,4.2589]
[1733222980545,2.2185,225.34,225.31,1.1102823]
[1733222980849,2.2185,225.34,225.3,4.2589]
[1733222981048,2.2185,225.34,225.31,1.11026496]
[1733222981343,2.2185,225.34,225.31,2.2188]
[1733222981748,2.2185,225.34,225.31,10.19132105]
[1733222982543,2.2184,225.35,225.32,2.2186]
[1733222982748,2.04,225.4,225.31,7.97252105]
[1733222983047,2.04,225.4,225.3,2.04]
[1733222983048,7.97252105,225.39,225.32,7.97252105]
[1733222983444,2.2184,225.36,225.32,10.19112105]
[1733222983650,2.2184,225.36,225.32,7.97252105]
[1733222983951,10.01252105,225.4,225.32,7.97252105]
[1733222984956,2.2182,225.37,225.33,2.2186]
[1733222987751,2.2183,225.36,225.33,2.2186]
[1733222988947,2.2183,225.36,225.27,1.3423]
[1733222989158,2.2183,225.36,225.32,2.2187]
[1733222989646,7.97252105,225.38,225.28,2.04]
[1733222989852,2.2184,225.35,225.31,2.2188]
[1733222990352,7.97252105,225.38,225.31,2.2188]
[1733222990761,2.2185,225.34,225.31,2.2188]
[1733222991051,2.2185,225.34,225.3,2.2189]
[1733222992149,7.97252105,225.38,225.3,2.2189]
[1733222992355,7.97252105,225.34,225.28,2.04]
[1733222992549,7.97252105,225.34,225.29,1.11031637]
[1733222992757,7.97252105,225.34,225.28,2.04]
[1733222993255,7.97252105,225.34,225.27,7.97252105]
[1733222993455,7.97252105,225.34,225.28,1.11039872]
[1733222993655,7.97252105,225.34,225.29,1.11039872]
[1733222993857,7.97252105,225.34,225.27,10.01252105]
[1733222994150,2.2188,225.32,225.28,3.32940461]
[1733222994355,2.2188,225.32,225.29,1.11040461]
[1733222994553,2.2188,225.32,225.28,2.219]
[1733222994856,7.97252105,225.34,225.29,1.11040461]
[1733222995052,7.97252105,225.34,225.27,10.01252105]
[1733222995251,7.97252105,225.34,225.28,2.88704159]
[1733222995252,2.2189,225.3,225.28,2.88704159]
[1733222995458,2.2189,225.3,225.29,1.11040061]
[1733222999258,10.19142105,225.3,225.29,1.11040061]
[1733223000358,10.19142105,225.3,225.24,2.2195]
[1733223000359,7.97252105,225.3,225.24,2.2195]
[1733223000663,10.19162105,225.28,225.25,1.11055817]
[1733223000959,10.19162105,225.28,225.24,2.2195]
[1733223001165,10.19162105,225.28,225.25,1.11055754]
[1733223001362,10.19162105,225.28,225.26,1.11055754]
[1733223001661,10.19162105,225.28,225.27,1.11055754]
[1733223003061,2.2195,225.24,225.2,10.01252105]
[1733223003264,2.2195,225.24,225.21,1.11068915]
[1733223003467,7.97252105,225.25,225.22,1.11068915]
[1733223003666,2.2195,225.24,225.23,1.11068915]
[1733223003865,2.2195,225.24,225.2,7.97252105]
[1733223004163,2.2195,225.24,225.21,1.11082967]
[1733223004366,2.2195,225.24,225.22,1.11082967]
[1733223004569,2.2197,225.23,225.2,7.97252105]
[1733223004769,2.2197,225.23,225.21,1.11082855]
[1733223004965,2.2197,225.23,225.2,7.97252105]
[1733223005165,2.2197,225.23,225.21,1.11084098]
[1733223005367,2.2197,225.23,225.2,7.97252105]
[1733223005565,2.2197,225.23,225.21,1.11084072]
[1733223005766,2.2197,225.23,225.2,7.97252105]
[1733223005968,2.2197,225.23,225.21,1.11083621]
[1733223006171,2.2197,225.23,225.2,7.97252105]
[1733223006372,2.2197,225.23,225.21,1.11083595]
[1733223006570,2.2197,225.23,225.2,7.97252105]
[1733223006772,2.2197,225.23,225.21,1.11083595]
[1733223006971,2.2197,225.23,225.2,7.97252105]
[1733223007575,2.2197,225.23,225.21,1.11083653]
[1733223007874,2.2197,225.23,225.2,7.97252105]
[1733223008074,2.2197,225.23,225.21,1.11083631]
[1733223008268,2.2197,225.23,225.2,7.97252105]
[1733223008470,2.2197,225.23,225.21,1.11083631]
[1733223008670,2.2197,225.23,225.2,7.97252105]
[1733223008870,2.2197,225.23,225.21,1.11083631]
[1733223009074,7.97252105,225.26,225.2,7.97252105]
[1733223009275,2.2197,225.22,225.2,7.97252105]
[1733223009972,7.97252105,225.26,225.2,7.97252105]
[1733223010173,7.97252105,225.24,225.12,1.3056]
[1733223010368,7.97252105,225.24,225.17,7.97252105]
[1733223010672,7.97252105,225.24,225.18,1.11087532]
[1733223010973,2.2199,225.2,225.17,7.97252105]
[1733223011377,7.97252105,225.2,225.12,1.3056]
[1733223011581,2.2202,225.17,225.13,5.10905629]
[1733223011877,2.2202,225.17,225.14,1.11098319]
[1733223012078,2.2202,225.17,225.15,1.11098319]
[1733223012278,2.2202,225.17,225.13,2.2205]
[1733223012477,2.2202,225.17,225.14,1.11109241]
[1733223012774,2.2202,225.17,225.13,10.19302105]
[1733223013277,2.2203,225.16,225.13,10.19302105]
[1733223013479,2.2203,225.16,225.13,7.97252105]
[1733223013879,7.97252105,225.2,225.13,7.97252105]
[1733223014571,2.2205,225.14,225.11,3.3956]
[1733223014770,7.97252105,225.18,225.11,3.3956]
[1733223014974,0.97252105,225.18,225.11,3.3956]
[1733223015174,2.2204,225.15,225.11,5.6163]
[1733223015378,2.2204,225.15,225.11,4.2607]
[1733223015574,0.97252105,225.18,225.11,2.04]
[1733223016075,0.97252105,225.18,225.05,1.2783]
[1733223016076,7.97252105,225.16,225.05,1.2783]
[1733223016276,7.97252105,225.14,225.06,3.15131039]
[1733223016478,7.97252105,225.14,225.06,10.19372105]
[1733223016682,7.97252105,225.14,225.06,7.97252105]
[1733223016872,2.2207,225.12,225.07,2.2211]
[1733223017073,7.97252105,225.14,225.07,2.2211]
[1733223017274,7.97252105,225.14,225.06,7.97252105]
[1733223017474,2.2211,225.08,225.06,7.97252105]
[1733223017677,2.2211,225.08,225.05,3.4996]
[1733223017678,2.2211,225.08,225.05,1.2783]
[1733223018080,2.221,225.09,225.03,10.19402105]
[1733223018278,7.97252105,225.1,225.02,10.01252105]
[1733223018583,2.2213,225.06,225.02,10.01252105]
[1733223019286,2.2213,225.06,225.02,2.04]
[1733223019580,7.97252105,225.1,225.02,2.04]
[1733223019785,7.97252105,225.08,225.02,10.01252105]
[1733223020179,7.97252105,225.08,225.02,2.04]
[1733223020479,2.2215,225.04,225.0,7.97252105]
[1733223020684,2.04,225.09,225.01,1.11175016]
[1733223020685,7.97252105,225.06,225.01,1.11175016]
[1733223020886,7.97252105,225.06,224.98,7.97252105]
[1733223021082,2.2216,225.03,224.99,1.1117948]
[1733223021387,7.97252105,225.01,224.93,1.3024]
[1733223021579,7.97252105,225.01,224.94,2.89108427]
[1733223021780,7.97252105,224.99,224.95,1.11195549]
[1733223021978,7.97252105,224.97,224.96,1.11195549]
[1733223022180,2.2223,224.96,224.91,2.04]
[1733223022483,2.7607,225.03,224.92,1.11215664]
[1733223022484,2.04,224.98,224.92,1.11215664]
[1733223022686,36.23147363,224.97,224.85,2.04]
[1733223022881,7.97252105,224.91,224.86,1.11236846]
[1733223023083,7.97252105,224.89,224.87,1.11236846]
[1733223023286,2.2231,224.88,224.81,3.5356]
[1733223023482,7.97252105,224.87,224.82,2.89284084]
[1733223023687,7.97252105,224.87,224.83,2.89280581]
[1733223023987,2.2232,224.86,224.84,1.11263109]
[1733223024188,7.97252105,224.85,224.81,3.3519]
[1733223024490,2.04,224.91,224.75,1.3978]